Cogmind - Beta 15 @@@ ROGUE MODE // 2025.08.30 @ 22:05:14 Player: umbrella Result: Destroyed by G-34 Mercenary with Small Laser Performance ------------- Evolutions (1) 500 Regions Visited (2) 400 Robots Destroyed (27) 135 Value Destroyed (687) 687 Prototype IDs (0) 0 Alien Tech Used (0) 0 Bonus (0) 0 TOTAL SCORE: 1722 Bonus ------- None Cogmind --------- Core Integrity 0/400 Matter 121/300 Energy 100/100 System Corruption 0% Temperature Cool (6) Movement Core (1350) Ox26 Location -9/Materials Parts ------- > --- POWER (2) -------- (None) > --- PROPULSION (2) --- (None) > --- UTILITY (2) ------ Disposable Heat Sink Huge Storage Unit > --- WEAPON (3) ------- (None) > --- INVENTORY (25) --- Aluminum Leg Aluminum Leg Cooling System Cooling System Disposable Heat Sink Terrain Scanner Backup Plating I Backup Plating I Light Armor Plating Shotgun Mini Grenade Launcher Mini Grenade Launcher Welding Torch Heavy Hammer Peak State ------------ > --- POWER ------------ Light Ion Engine > --- PROPULSION ------- Light Treads Light Treads > --- UTILITY ---------- Large Storage Unit Medium Battery > --- WEAPON ----------- EM Pulse Gun Grenade Launcher > --- INVENTORY -------- Aluminum Leg Aluminum Leg Aluminum Leg Cooling System Cooling System Disposable Heat Sink Disposable Heat Sink Disposable Heat Sink Disposable Heat Sink Small Laser Salvaging Laser Light Assault Rifle Light Cannon Welding Torch [Rating: 9] Favorites ----------- Power Light Ion Engine Engine Light Ion Engine Propulsion Light Treads Treads Light Treads Leg Aluminum Leg Utility Large Storage Unit Device Disposable Heat Sink Storage Large Storage Unit Weapon Mini Grenade Launcher Energy Gun EM Pulse Gun Ballistic Gun Light Assault Rifle Launcher Mini Grenade Launcher Build | -11 -10 -9 ------- Run | Yrd Mat Mat Slots Evolved 2 | . . 2 Power 1 | . . 1 Propulsion . | . . . Utility . | . . . Weapon 1 | . . 1 Parts Attached 13 | 4 3 6 Power 1 | 1 . . Engine 1 | 1 . . Core . | . . . Reactor . | . . . Propulsion 4 | 2 . 2 Treads 2 | 2 . . Leg 2 | . . 2 Wheel . | . . . Hover . | . . . Flight . | . . . Utility 4 | . 2 2 Device 1 | . . 1 Storage 3 | . 2 1 Processor . | . . . Hackware . | . . . Protection . | . . . Artifact . | . . . Weapon 4 | 1 1 2 Energy Gun 1 | 1 . . Energy Cannon . | . . . Ballistic Gun 1 | . . 1 Ballistic Cannon . | . . . Launcher 2 | . 1 1 Special Weapon . | . . . Impact Weapon . | . . . Slashing Weapon . | . . . Piercing Weapon . | . . . Special Melee Weapon . | . . . Unidentified Prototypes . | . . . Parts Lost 8 | . . 8 Power 1 | . . 1 Propulsion 3 | . . 3 Utility 1 | . . 1 Weapon 3 | . . 3 Highest Loss Streak 3 | . . 3 To Critical Strikes . | . . . Average Backups 11 | . 6 13 Power . | . . . Propulsion 2 | . 1 2 Utility 5 | . 2 6 Weapon 3 | . 2 3 Tool/Special . | . . . Unused Backups 23 | . . 23 Power 1 | . . 1 Propulsion 3 | . . 3 Utility 11 | . . 11 Weapon 7 | . . 7 Tool/Special 1 | . . 1 Average Slot Usage (%) 68 | . 92 61 Engine 6 | . 14 4 Treads 12 | . 28 7 Leg 9 | . . 13 Device 5 | . . 7 Storage 16 | . 24 14 Energy Gun 5 | . 14 3 Launcher 10 | . 10 10 Peak Build Rating 9 | 4 9 9 Average Rating 8 | 2 7 8 On Entrance 4 | . 4 9 Naked Turns . | . . . Heaviest Build 83 | 5 30 83 Greatest Support 40 | 40 40 40 Greatest Overweight (x) 26 | . . 26 Average Overweight (x) 1 | . . 1 Largest Inventory Capacity 25 | 5 15 25 Average Capacity 19 | 5 13 21 Most Carried 16 | 3 14 16 Average Carried 11 | . 6 13 Final Capacity 25 | 5 15 25 Final Carried 14 | . 14 14 Class Distribution -------------------- 100% | Mutant Dominant Class ---------------- Mutant | -10/Materials Mutant | -9/Materials Resources | -11 -10 -9 ----------- Run | Yrd Mat Mat Matter Collected 483 | 137 134 212 Remotely . | . . . Salvage Created 474 | . 54 420 Parts 33 | . 8 25 Haulers Intercepted . | . . . Recyclers Shooed 1 | . . 1 Parts Field Recycled . | . . . Retrieved Matter . | . . . Parts Self-Destructed . | . . . Prevented . | . . . Kills | -11 -10 -9 ------- Run | Yrd Mat Mat Combat Hostiles Destroyed 17 | . 2 15 Guns 5 | . 2 3 AOE 12 | . . 12 Classes Destroyed 9 | . 2 7 Worker 1 | . . 1 Builder 4 | . . 4 Recycler 1 | . . 1 Operator 2 | . 1 1 Watcher 2 | . . 2 Swarmer 2 | . 2 . Grunt 11 | . . 11 Duelist 1 | . . 1 Sentry 3 | . . 3 Best Kill Streak 7 | . 3 7 Combat Bots Only 4 | . 2 4 Max Kills in Single Turn 2 | . 1 2 Gunslinging . | . . . Exploded 2 | . . 2 Melee . | . . . Uniques/NPCs Destroyed . | . . . Combat | -11 -10 -9 -------- Run | Yrd Mat Mat Hostile Shots Fired 119 | . 7 112 Missed 47 | . 5 42 Hits 72 | . 2 70 Melee 2 | . . 2 Projectile 70 | . 2 68 Damage Taken 1171 | . 17 1154 Core 414 | . 9 405 Absorbed by Shields . | . . . Core Remaining (%) 98 | 100 96 . Volleys Fired 50 | . 5 45 Largest 2 | . 2 2 Hottest 70 | . 70 70 Shots Fired 66 | . 6 60 Gun 29 | . 5 24 Cannon . | . . . Launcher 37 | . 1 36 Special . | . . . Kinetic 11 | . . 11 Thermal . | . . . Explosive 37 | . 1 36 Electromagnetic 18 | . 5 13 Robot Hit Streak 6 | . 2 6 Robot Miss Streak 3 | . 1 3 Penetration Max . | . . . Secondary Targets . | . . . Shots Hit Robots 43 | . 3 40 Core Hits 49 | . 3 46 Critical Kills . | . . . Critical Parts Destroyed . | . . . Critical Strikes 1 | . 1 . Corrupt 1 | . 1 . Melee Attacks . | . . . Impact . | . . . Slashing . | . . . Piercing . | . . . Sneak Attacks . | . . . Combat Hostiles . | . . . Follow-up Attacks . | . . . Damage Inflicted 1995 | . 56 1939 Guns 211 | . 49 162 Cannons . | . . . Explosions 1777 | . . 1777 Melee . | . . . Ramming 7 | . 7 . Kinetic 65 | . . 65 Thermal . | . . . Explosive 1777 | . . 1777 Electromagnetic 146 | . 49 97 Impact . | . . . Slashing . | . . . Piercing . | . . . Highest Corruption . | . . . Average Corruption . | . . . Corruption Purged . | . . . Corruption Blocked . | . . . Overload Shots . | . . . Overflow Damage 78 | . . 78 Projectiles . | . . . Explosions 78 | . . 78 Melee . | . . . Knockbacks . | . . . Impact . | . . . Kinetic . | . . . Secondary . | . . . Self-Inflicted Damage 282 | . . 282 Shots 11 | . . 11 Rammed 3 | . 3 . Targets Rammed 3 | . 3 . Kicked . | . . . Crushed . | . . . Highest Temperature 18 | . 9 18 Average Temperature 12 | . 6 13 Received Heat Transfer 357 | . . 357 Siege Activations . | . . . Martial Activations . | . . . Shielding Activations . | . . . Robots Disrupted . | . . . Combat Hostiles . | . . . Robots Corrupted . | . . . Combat Hostiles . | . . . Parts Fried . | . . . Impact Corruptions . | . . . Robots Melted . | . . . Combat Hostiles . | . . . Parts Melted . | . . . Heat Transferred . | . . . Parts Sabotaged . | . . . Parts Stolen . | . . . Parts Stripped . | . . . Power Chain Reactions . | . . . Alert | -11 -10 -9 ------- Run | Yrd Mat Mat Maximum Alert Level 1 | . . 1 Low Security (%) 81 | 100 100 74 Level 1 18 | . . 25 Level 2 . | . . . Level 3 . | . . . Level 4 . | . . . Level 5 . | . . . High Security . | . . . Max Security . | . . . Peak Influence 303 | . 69 303 Initial . | . . . Average 103 | . 7 137 Influence Increases 744 | . 69 675 Destroy 0b10 Robot/C 340 | . 40 300 Destroy 0b10 Robot/NC 50 | . 5 45 Destroy Leader 94 | . 10 84 Successful Hack 2 | . . 2 Disable Machine 30 | . . 30 Destroy Structure 168 | . 14 154 Lose Combat Pursuer 60 | . . 60 Influence Decreases 626 | . 69 557 Time Decay 546 | . 69 477 Lost Part 80 | . . 80 Squads Dispatched 7 | . 2 5 Investigation 2 | . 1 1 Extermination . | . . . Reinforcement 5 | . 1 4 Assault . | . . . Garrison . | . . . Intercept . | . . . Searches Triggered . | . . . Construction Impeded 2 | . . 2 Haulers Reinforced . | . . . Active Scanning Responses . | . . . Cargo Convoy Interrupts . | . . . Stealth | -11 -10 -9 --------- Run | Yrd Mat Mat Distress Signals 1 | . . 1 Communications Jammed . | . . . Distress Signals . | . . . Times Spotted 27 | . 2 25 Peak Tracking Total 5 | . 2 5 Tactical Retreats 2 | . . 2 Traps | -11 -10 -9 ------- Run | Yrd Mat Mat Traps Triggered 1 | . . 1 Indirectly . | . . . Trap Hack Attempts . | . . . Triggered . | . . . Disarmed . | . . . Reprogrammed . | . . . Reused . | . . . Traps Extracted . | . . . Installed . | . . . Triggered . | . . . Machines | -11 -10 -9 ---------- Run | Yrd Mat Mat Machines Disabled 2 | . . 2 Max in Single Turn 1 | . . 1 Machines Repaired . | . . . Machines Dismantled . | . . . Machines Sabotaged . | . . . Overloaded Fab Kills . | . . . Hacking | -11 -10 -9 --------- Run | Yrd Mat Mat Machines Accessed 2 | . 1 1 Terminals . | . . . Fabricators . | . . . Repair Stations 2 | . 1 1 Recycling Units . | . . . Scanalyzers . | . . . Garrison Access . | . . . Total Hacks 2 | . 1 1 Successful 2 | . 1 1 Failed . | . . . Catastrophic . | . . . Database Lockouts . | . . . Manual . | . . . Terminals . | . . . Fabricators . | . . . Repair Stations 2 | . 1 1 Recycling Units . | . . . Scanalyzers . | . . . Garrison Access . | . . . Terminal Hacks . | . . . Fabricator Hacks . | . . . Repair Station Hacks 2 | . 1 1 Scan Component 2 | . 1 1 Recycling Unit Hacks . | . . . Scanalyzer . | . . . Garrison Access Hacks . | . . . Unauthorized Hacks . | . . . Terminals . | . . . Fabricators . | . . . Repair Stations . | . . . Recycling Units . | . . . Scanalyzers . | . . . Garrison Access . | . . . Data Cores Recovered . | . . . Used . | . . . Hacking Detections . | . . . Full Trace Events . | . . . Feedback Events . | . . . Feedback Blocked . | . . . Robot Schematics Acquired . | . . . Robots Built . | . . . Authchips . | . . . Time . | . . . Total Robot Build Rating . | . . . Part Schematics Acquired . | . . . Parts Built . | . . . Authchips . | . . . Time . | . . . Total Part Build Rating . | . . . Parts Repaired . | . . . Time . | . . . Parts Recycled . | . . . Recycled Matter . | . . . Retrieved Matter . | . . . Retrieved Components . | . . . Parts Scanalyzed . | . . . Part Schematics Acquired . | . . . Parts Damaged . | . . . Bothacking | -11 -10 -9 ------------ Run | Yrd Mat Mat Used RIF Installer . | . . . Robots Hacked . | . . . Non-combat . | . . . Combat . | . . . Robot Hacks Applied . | . . . Relay Couplers Released . | . . . Fabnet Peak Effective % . | . . . Robots Rewired . | . . . Allies Hacked . | . . . Hacks Repelled . | . . . Allies | -11 -10 -9 -------- Run | Yrd Mat Mat Total Allies . | . . . Largest Group . | . . . Highest-Rated Group . | . . . Highest-Rated Ally . | . . . Total Orders . | . . . Ally Attacks . | . . . Total Damage . | . . . Kills . | . . . Allies Corrupted . | . . . Allies Melted . | . . . Intel | -11 -10 -9 ------- Run | Yrd Mat Mat Active Infowar (turns) . | . . . Robot Analysis Total . | . . . Derelict Logs Recovered . | . . . Drone Launches . | . . . Drone Recoveries . | . . . Exploration | -11 -10 -9 ------------- Run | Yrd Mat Mat Turns Passed 2412 | 59 571 1782 Spaces Moved 991 | 43 335 613 Core 17 | 15 . 2 Treads 720 | 28 335 357 Legs 254 | . . 254 Wheels . | . . . Hover . | . . . Flight . | . . . Fastest Speed 50 | 50 160 160 Average Speed 226 | 121 160 270 Slowest Speed 1350 | 160 160 1350 Overloaded Moves . | . . . Propulsion Burnouts . | . . . Robots Hopped . | . . . Potential Cave-ins 6 | . . 6 Cave-ins Triggered . | . . . Exploration Rate (%) 26 | 3 40 37 Regions Visited 2 Branch Regions . Pre-discovered Areas . | . . . Known Exits Taken . | . . . Unknown Exits Taken 2 | 1 1 . Scrap Searched . | . . . Spaces Dug . | . . . Terrain Destroyed 208 | . 13 195 Melee . | . . . Projectile . | . . . AOE 208 | . 13 195 Terrain Rammed . | . . . Walls Destroyed . | . . . Machines Disabled . | . . . Actions | -11 -10 -9 --------- Run | Yrd Mat Mat Total 1103 | 50 362 691 Wait . | . . . Move 989 | 42 334 613 Hop . | . . . Pick Up 36 | 4 17 15 Fast Attach . | . . . Attach 12 | 4 3 5 Detach . | . . . Swap 1 | . . 1 Drop 12 | . . 12 Fire 50 | . 5 45 Melee . | . . . Ram . | . . . Kick . | . . . Crush 3 | . 3 . Escape Stasis . | . . . Rewire . | . . . Trap . | . . . Miscellaneous . | . . . Route ------- -11/Scrapyard -10/Materials (discovered 2 exits: *Mat / [*Sub]) -9/Materials (discovered 1 exit: [*Mat]) History --------- Turn | Location | Event 6 | -11/Scrapyard | Discovered new exit (range 16) 60 | -11/Scrapyard | Entered Materials 61 | -10/Materials | Met a group of wandering Federalists 298 | -10/Materials | Discovered new exit (range 16) 317 | -10/Materials | Build established: Mutant 543 | -10/Materials | Discovered new exit (range 10) 631 | -10/Materials | Entered another Materials area 631 | -9/Materials | Evolved 2 slots: Power x1, Weapon x1 1238 | -9/Materials | Lost 3 parts (1n1u1w) 1416 | -9/Materials | Core integrity fell below 50% 2192 | -9/Materials | Discovered new exit (range 9) 2379 | -9/Materials | Core integrity fell below 20% 2413 | -9/Materials | Destroyed by G-34 Mercenary with Small Laser Last Messages --------------- 02391_ U-05 Engineer lays Concrete. 02392_ K-01 Serf collects debris. 02393_ U-05 Engineer builds a Wall. 02394_ U-05 Engineer lays Concrete. 02395_ The unstable cave ceiling collapses. 02395_ K-01 Serf collects debris. 02395_ U-05 Engineer lays Concrete. 02396_ K-01 Serf collects debris. 02397_ U-05 Engineer builds a Wall. 02399_ K-01 Serf collects debris. 02401_ U-05 Engineer lays Concrete. 02402_ K-01 Serf collects debris. 02402_ U-05 Engineer builds a Wall. 02402_ U-05 Engineer lays Concrete. 02403_ K-01 Serf collects debris. 02404_ U-05 Engineer builds a Wall. 02407_ K-01 Serf collects debris. 02408_ U-05 Engineer lays Concrete. 02409_ K-01 Serf collects debris. 02410_ U-05 Engineer lays Concrete. Map ----- +----------------------------------------------------+ | ????????????????????????????????????????????## | | ????????????????????????????????????????????+ | | ????????????????????????????????????????????# | | ??????????????????????????????????????????### | | ????????????????????????????????????????? | | ????????????????????????????????????????? | | ????????????????????????????????????????? | | ??????????????????????????????????????????###### # | | ?????????????????????????????????????????????????? | | ?????????????????????????????????????????????????? | | ???????????????????????? ??????????????????????? | | ???????????????????????? ????????????????????? ? | | ???????????????????????? #???????????????????? ? | | ???????????????????????# +???????????????????? ? | | ???????????????????????# #???????????????????# ? | | ?????????????????####### #???????????????????# ? | | ????????????????? # #???????????????????# ? | | ?????????????????? T # #?????????????????### # | | ???????????????????" + ##????????????##### ] | | ???????????????????? [ # ##???????????? | | ????????????????????? # # #????????????? T | | ????????????????????## #u ####????????????? | | ???????????????###### #??????????????# | | ???????????????# ##?############### | | ???????????????# % #?# ## | | ???????????????# @ #?# ## | | ???????????????# #### gu # #?# """ """ ## | | ?????????????????????# ####### """ """ ## | | ?????????????????????## k ## """ """ ## | | ??????????????????????# ## ## | | ??????????????????????+ #########+##### | | ??????????????????????# ######## | | ??????????????????????# + ! T | | ??????????????????????# ######## | | ??????????????????????# #??????######## | | ??????????????????????# #?????????????###+# | | ??????????????????????# #?????????????????? | | ??????????????????????##########?????????????????? | | ?????????????????????????????????????????????????? | | ?????????????????????????????????????????????????? | | ?????????????????????????????????????????????????? | | ?????????????????????????????????????????????????? | | ?????????????????????????????????????????????????? | | ?????????????????????????????????????????????????? | | ?????????????????????????????????????????????????? | | ?????????????????????????????????????????????????? | | ?????????????????????????????????????????????????? | | ?????????????????????????????????????????????????? | | | | | +----------------------------------------------------+ Best States ------------- Heat Dissipation 28 Coolant Potential 50 Energy Generation 10 Energy Capacity 275 Matter Stores 300 Matter Capacity 300 Sight Range 16 Terrain Scan Density 10 Evasion (%) 50 Recoil Reduction 2 Item Schematics ----------------- None Robot Schematics ------------------ None Fabricated ------------ Nothing Repaired ---------- Nothing Alien Tech Used ----------------- None Achievements -------------- Oops Remodeling Challenges ------------ None Game ------ Seed ExoskeletonSmallStorm Manual? 0 Play Time 00:13:39 Cumulative 1.7 hours Start 2025.08.30 @ 20:09:57 End 2025.08.30 @ 22:05:14 Sessions 2 Manual Loads 0 Difficulty Rogue Special Mode None Game No. 7 Rogue 7 Adventurer 0 Explorer 0 Win Type - Total 0 Types 0/0/0/0/0/0/0/0/0/0 Lore% 3 Gallery% 2 Achievement% 5 Wizard Run 0 Options --------- Layout 1 ASCII 0 Keyboard 0 Movement Arrows Keybinds 0 Fullscreen 1 Font 24/Terminus Map View 50x35 Zoom Use 5% Tactical HUD 1 Map Filters NONE Filters NONE Steam 1 RUN: 7f14fc7e-b05f-44cc-828a-061115b93447